[Event "Late-Titled-Tuesday-Blitz-May-28-2024"]
[Site "Chess.com"]
[Date "2024.05.28"]
[Round "8"]
[White "ATM622"]
[Black "merinasian"]
[Result "1/2-1/2"]
[WhiteElo "2579"]
[BlackElo "2462"]
[TimeControl "180+1"]
[EndTime "15:29:47 PDT"]
[Termination "Game drawn by stalemate"]

1. d4 {[%clk 0:03:00.9]} 1... d6 {[%clk 0:02:56.1]} 2. g3 {[%clk 0:02:59.9]}
2... Nd7 {[%clk 0:02:56.7]} 3. Bg2 {[%clk 0:02:59.9]} 3... g6 {[%clk 0:02:57.3]}
4. Nf3 {[%clk 0:03:00.1]} 4... Bg7 {[%clk 0:02:57.7]} 5. O-O {[%clk 0:03:00.4]}
5... e5 {[%clk 0:02:57.3]} 6. dxe5 {[%clk 0:02:57.9]} 6... dxe5 {[%clk
0:02:56.8]} 7. e4 {[%clk 0:02:55.8]} 7... Ne7 {[%clk 0:02:57.2]} 8. Nbd2 {[%clk
0:02:39.4]} 8... O-O {[%clk 0:02:55.5]} 9. Nc4 {[%clk 0:02:37.5]} 9... b6 {[%clk
0:02:52.3]} 10. Bh3 {[%clk 0:02:30.8]} 10... Nc5 {[%clk 0:02:26.6]} 11. Bxc8
{[%clk 0:02:26.6]} 11... Qxc8 {[%clk 0:02:22.9]} 12. Nfxe5 {[%clk 0:02:25.3]}
12... Nxe4 {[%clk 0:02:19.1]} 13. Qe2 {[%clk 0:02:23.9]} 13... Qb7 {[%clk
0:01:58.3]} 14. Re1 {[%clk 0:02:19.3]} 14... Nc5 {[%clk 0:01:43.3]} 15. Be3
{[%clk 0:02:10.9]} 15... Nf5 {[%clk 0:01:38.4]} 16. Qf3 {[%clk 0:01:44.7]} 16...
Qxf3 {[%clk 0:01:27.9]} 17. Nxf3 {[%clk 0:01:45.6]} 17... Nxe3 {[%clk
0:01:27.6]} 18. Rxe3 {[%clk 0:01:45.3]} 18... Rfe8 {[%clk 0:01:26.3]} 19. Rae1
{[%clk 0:01:41.6]} 19... Rxe3 {[%clk 0:01:26]} 20. Rxe3 {[%clk 0:01:39.8]} 20...
Kf8 {[%clk 0:01:21.7]} 21. c3 {[%clk 0:01:34.8]} 21... Rd8 {[%clk 0:01:18.4]}
22. Kg2 {[%clk 0:01:27.9]} 22... Nd3 {[%clk 0:01:16.4]} 23. Nd4 {[%clk
0:01:18.3]} 23... Bxd4 {[%clk 0:00:45.2]} 24. Rxd3 {[%clk 0:01:17.9]} 24... Bf6
{[%clk 0:00:45.8]} 25. Rxd8+ {[%clk 0:01:18.1]} 25... Bxd8 {[%clk 0:00:46.7]}
26. Ne5 {[%clk 0:01:18.5]} 26... Bg5 {[%clk 0:00:39.5]} 27. f4 {[%clk
0:01:16.1]} 27... Bf6 {[%clk 0:00:39.6]} 28. Ng4 {[%clk 0:01:06.4]} 28... Be7
{[%clk 0:00:38.5]} 29. Kf3 {[%clk 0:01:04.9]} 29... h5 {[%clk 0:00:36.4]} 30.
Ne5 {[%clk 0:01:04.8]} 30... Bd6 {[%clk 0:00:36.7]} 31. Nc6 {[%clk 0:01:02.3]}
31... a5 {[%clk 0:00:35.8]} 32. Ke4 {[%clk 0:01:02.6]} 32... Bc5 {[%clk
0:00:32.2]} 33. h3 {[%clk 0:00:59.1]} 33... f5+ {[%clk 0:00:26.9]} 34. Kd5
{[%clk 0:00:55.9]} 34... Bf2 {[%clk 0:00:26.6]} 35. Ne5 {[%clk 0:00:23.8]} 35...
Bxg3 {[%clk 0:00:25.5]} 36. Nxg6+ {[%clk 0:00:23.9]} 36... Kg7 {[%clk 0:00:24]}
37. Ne7 {[%clk 0:00:22.7]} 37... Kf6 {[%clk 0:00:17.7]} 38. Ng8+ {[%clk
0:00:19.3]} 38... Kf7 {[%clk 0:00:16]} 39. Nh6+ {[%clk 0:00:18.7]} 39... Kg6
{[%clk 0:00:16.1]} 40. Ng8 {[%clk 0:00:18.5]} 40... Bxf4 {[%clk 0:00:16.3]} 41.
Ne7+ {[%clk 0:00:03.8]} 41... Kf6 {[%clk 0:00:16.4]} 42. Nc6 {[%clk 0:00:03.8]}
42... Bd6 {[%clk 0:00:15.3]} 43. b4 {[%clk 0:00:03.6]} 43... axb4 {[%clk
0:00:14.8]} 44. cxb4 {[%clk 0:00:03.8]} 44... Kg5 {[%clk 0:00:14.9]} 45. Kd4
{[%clk 0:00:03.7]} 45... Kh4 {[%clk 0:00:13.9]} 46. Ke3 {[%clk 0:00:04.2]} 46...
Kxh3 {[%clk 0:00:13.3]} 47. Kf3 {[%clk 0:00:04.6]} 47... h4 {[%clk 0:00:12.7]}
48. a4 {[%clk 0:00:04.8]} 48... Kh2 {[%clk 0:00:11]} 49. a5 {[%clk 0:00:05.1]}
49... bxa5 {[%clk 0:00:10.3]} 50. bxa5 {[%clk 0:00:05.1]} 50... Bc5 {[%clk
0:00:10.1]} 51. a6 {[%clk 0:00:05.2]} 51... Kh1 {[%clk 0:00:09.8]} 52. a7 {[%clk
0:00:03.2]} 52... Bxa7 {[%clk 0:00:09.9]} 53. Nxa7 {[%clk 0:00:04.1]} 53... h3
{[%clk 0:00:10.2]} 54. Kf2 {[%clk 0:00:03.6]} 54... c5 {[%clk 0:00:09.1]} 55.
Nb5 {[%clk 0:00:03.6]} 55... c4 {[%clk 0:00:08.9]} 56. Nc3 {[%clk 0:00:03.8]}
56... f4 {[%clk 0:00:09.1]} 57. Kf1 {[%clk 0:00:04]} 57... Kh2 {[%clk
0:00:08.8]} 58. Kf2 {[%clk 0:00:04.2]} 58... f3 {[%clk 0:00:07.1]} 59. Ne4
{[%clk 0:00:02]} 59... Kh1 {[%clk 0:00:06.6]} 60. Ng3+ {[%clk 0:00:01.5]} 60...
Kh2 {[%clk 0:00:06.8]} 61. Nf1+ {[%clk 0:00:02.4]} 61... Kh1 {[%clk 0:00:06.3]}
62. Nd2 {[%clk 0:00:03.3]} 62... c3 {[%clk 0:00:06]} 63. Nb3 {[%clk 0:00:03.8]}
63... c2 {[%clk 0:00:06.2]} 64. Nc1 {[%clk 0:00:04.2]} 64... Kh2 {[%clk
0:00:06.5]} 65. Nd3 {[%clk 0:00:04.5]} 65... Kh1 {[%clk 0:00:06.1]} 66. Nc1
{[%clk 0:00:04.9]} 66... h2 {[%clk 0:00:05.8]} 67. Kf1 {[%clk 0:00:04.9]} 67...
f2 {[%clk 0:00:06.1]} 68. Nd3 {[%clk 0:00:04.6]} 68... c1=Q+ {[%clk 0:00:06.1]}
69. Nxc1 {[%clk 0:00:05]} 1/2-1/2

[Event "Late-Titled-Tuesday-Blitz-May-28-2024"]
[Site "Chess.com"]
[Date "2024.05.28"]
[Round "8"]
[White "crazy_but_lazy"]
[Black "kinga2008"]
[Result "1-0"]
[WhiteElo "2663"]
[BlackElo "2420"]
[TimeControl "180+1"]
[EndTime "15:29:52 PDT"]
[Termination "crazy_but_lazy won by resignation"]

1. d4 {[%clk 0:02:55.5]} 1... Nf6 {[%clk 0:02:55.7]} 2. Nf3 {[%clk 0:02:55.4]}
2... b6 {[%clk 0:02:55.9]} 3. Bf4 {[%clk 0:02:53.7]} 3... Bb7 {[%clk 0:02:56.8]}
4. e3 {[%clk 0:02:54]} 4... d5 {[%clk 0:02:56.9]} 5. Be2 {[%clk 0:02:52.4]} 5...
e6 {[%clk 0:02:57.5]} 6. O-O {[%clk 0:02:52.4]} 6... Bd6 {[%clk 0:02:58.1]} 7.
Nbd2 {[%clk 0:02:49.3]} 7... Bxf4 {[%clk 0:02:57.5]} 8. exf4 {[%clk 0:02:50.2]}
8... O-O {[%clk 0:02:58.2]} 9. c3 {[%clk 0:02:50.4]} 9... Nbd7 {[%clk
0:02:58.2]} 10. Bd3 {[%clk 0:02:50.8]} 10... c5 {[%clk 0:02:58.3]} 11. Re1
{[%clk 0:02:50.8]} 11... Rc8 {[%clk 0:02:58]} 12. Ne5 {[%clk 0:02:47.3]} 12...
h6 {[%clk 0:02:56.7]} 13. f5 {[%clk 0:02:44.1]} 13... Re8 {[%clk 0:02:49.6]} 14.
Qa4 {[%clk 0:02:28.3]} 14... c4 {[%clk 0:02:40.4]} 15. fxe6 {[%clk 0:02:15.7]}
15... Rxe6 {[%clk 0:02:17.4]} 16. Bf5 {[%clk 0:02:13.9]} 16... Nxe5 {[%clk
0:01:58.2]} 17. dxe5 {[%clk 0:02:00.8]} 17... Nd7 {[%clk 0:01:42]} 18. Bxe6
{[%clk 0:01:59.2]} 18... fxe6 {[%clk 0:01:41.5]} 19. Qc2 {[%clk 0:01:14.2]}
19... Nc5 {[%clk 0:01:30.5]} 20. Nf3 {[%clk 0:01:12.4]} 20... Qf8 {[%clk
0:01:26.9]} 21. Nd4 {[%clk 0:01:07.1]} 21... Qf7 {[%clk 0:01:26.7]} 22. Re3
{[%clk 0:01:06.9]} 22... Rf8 {[%clk 0:01:25.4]} 23. Rf3 {[%clk 0:01:01.8]} 23...
Qe7 {[%clk 0:01:20.4]} 24. Rxf8+ {[%clk 0:00:55.3]} 24... Kxf8 {[%clk
0:01:19.3]} 25. Qg6 {[%clk 0:00:48.2]} 25... Bc8 {[%clk 0:01:17]} 26. Re1 {[%clk
0:00:44.3]} 26... Qf7 {[%clk 0:01:13.8]} 27. Qxf7+ {[%clk 0:00:40.3]} 27... Kxf7
{[%clk 0:01:14.7]} 28. Re2 {[%clk 0:00:32.2]} 28... Nd3 {[%clk 0:01:08.2]} 29.
g3 {[%clk 0:00:24.5]} 29... g5 {[%clk 0:01:05.6]} 30. h3 {[%clk 0:00:22.7]}
30... Nc1 {[%clk 0:00:59.8]} 31. Re1 {[%clk 0:00:19]} 31... Nd3 {[%clk
0:00:59.2]} 32. Re2 {[%clk 0:00:17]} 32... Nc1 {[%clk 0:00:58.9]} 33. Rd2 {[%clk
0:00:17.1]} 33... a5 {[%clk 0:00:52]} 34. b3 {[%clk 0:00:16.9]} 34... Ba6 {[%clk
0:00:49.9]} 35. Kg2 {[%clk 0:00:14.9]} 35... b5 {[%clk 0:00:47.1]} 36. bxc4
{[%clk 0:00:14.2]} 36... bxc4 {[%clk 0:00:48]} 37. Rb2 {[%clk 0:00:13.3]} 37...
Ke7 {[%clk 0:00:44.2]} 38. Rb6 {[%clk 0:00:11.3]} 38... Bc8 {[%clk 0:00:44.2]}
39. Rc6 {[%clk 0:00:11.2]} 39... Bd7 {[%clk 0:00:44.4]} 40. Rc7 {[%clk
0:00:11.5]} 40... Nxa2 {[%clk 0:00:42]} 41. Ra7 {[%clk 0:00:08.8]} 41... a4
{[%clk 0:00:40.8]} 42. f4 {[%clk 0:00:07.7]} 42... gxf4 {[%clk 0:00:38.7]} 43.
gxf4 {[%clk 0:00:08.6]} 43... Nxc3 {[%clk 0:00:39.2]} 44. f5 {[%clk 0:00:09.2]}
44... Kd8 {[%clk 0:00:20.4]} 45. f6 {[%clk 0:00:08.8]} 45... Be8 {[%clk
0:00:09.9]} 46. Nxe6+ {[%clk 0:00:08]} 46... Kc8 {[%clk 0:00:10.2]} 47. Nd4
{[%clk 0:00:06.9]} 47... Ne4 {[%clk 0:00:06.7]} 48. f7 {[%clk 0:00:06]} 48...
Bxf7 {[%clk 0:00:06.9]} 49. Rxf7 {[%clk 0:00:06.9]} 49... c3 {[%clk 0:00:07.8]}
50. Ra7 {[%clk 0:00:06]} 50... Nc5 {[%clk 0:00:07.2]} 51. Kf2 {[%clk 0:00:02.9]}
51... Kb8 {[%clk 0:00:07.7]} 52. Ra5 {[%clk 0:00:03.1]} 52... Ne4+ {[%clk
0:00:05.3]} 53. Ke3 {[%clk 0:00:03.3]} 53... Kc7 {[%clk 0:00:04.5]} 54. Rxa4
{[%clk 0:00:03.3]} 54... Kd7 {[%clk 0:00:04.6]} 55. Ra7+ {[%clk 0:00:03.3]}
55... Ke8 {[%clk 0:00:04.7]} 56. e6 {[%clk 0:00:03.7]} 56... Nd6 {[%clk
0:00:04.7]} 57. Kf4 {[%clk 0:00:02.9]} 57... c2 {[%clk 0:00:04]} 58. Nxc2 {[%clk
0:00:02.5]} 58... Nb5 {[%clk 0:00:04.9]} 59. Rh7 {[%clk 0:00:02.7]} 59... d4
{[%clk 0:00:05.1]} 60. Nb4 {[%clk 0:00:02.6]} 60... d3 {[%clk 0:00:06]} 61. Nxd3
{[%clk 0:00:02.7]} 61... Nd4 {[%clk 0:00:06.3]} 62. Ke5 {[%clk 0:00:02.6]} 62...
Nf3+ {[%clk 0:00:06.5]} 63. Kd6 {[%clk 0:00:02.5]} 63... Kf8 {[%clk 0:00:06.2]}
64. Ra7 {[%clk 0:00:01.5]} 64... Ng5 {[%clk 0:00:06.5]} 65. e7+ {[%clk 0:00:02]}
65... Kf7 {[%clk 0:00:07.4]} 66. Ne5+ {[%clk 0:00:02.6]} 66... Kf6 {[%clk
0:00:07.6]} 67. e8=Q {[%clk 0:00:03.5]} 67... Ne4+ {[%clk 0:00:08.5]} 68. Kc6
{[%clk 0:00:03.3]} 68... Kf5 {[%clk 0:00:08.3]} 69. Rf7+ {[%clk 0:00:03.6]}
69... Nf6 {[%clk 0:00:09.2]} 70. Rxf6+ {[%clk 0:00:03.9]} 70... Ke4 {[%clk
0:00:10.1]} 71. Qh5 {[%clk 0:00:04.5]} 71... Kd4 {[%clk 0:00:10.6]} 72. Qxh6
{[%clk 0:00:05.4]} 72... Kc3 {[%clk 0:00:10.3]} 73. Qg5 {[%clk 0:00:06.3]} 73...
Kd4 {[%clk 0:00:11.2]} 74. h4 {[%clk 0:00:07.2]} 1-0

[Event "Late-Titled-Tuesday-Blitz-May-28-2024"]
[Site "Chess.com"]
[Date "2024.05.28"]
[Round "8"]
[White "hansen"]
[Black "artin10862"]
[Result "1-0"]
[WhiteElo "3066"]
[BlackElo "3019"]
[TimeControl "180+1"]
[EndTime "15:30:02 PDT"]
[Termination "hansen won on time"]

1. e4 {[%clk 0:03:00.9]} 1... c5 {[%clk 0:02:57.1]} 2. Nf3 {[%clk 0:03:00.9]}
2... Nc6 {[%clk 0:02:57.4]} 3. Bb5 {[%clk 0:03:00.6]} 3... e6 {[%clk 0:02:54.1]}
4. O-O {[%clk 0:03:00.1]} 4... Nge7 {[%clk 0:02:50.3]} 5. Re1 {[%clk 0:02:57.3]}
5... a6 {[%clk 0:02:49.1]} 6. Bf1 {[%clk 0:02:57.9]} 6... Ng6 {[%clk 0:02:49.3]}
7. g3 {[%clk 0:02:53.2]} 7... Be7 {[%clk 0:02:45.1]} 8. c3 {[%clk 0:02:47.5]}
8... d5 {[%clk 0:02:25.6]} 9. exd5 {[%clk 0:02:47.3]} 9... exd5 {[%clk
0:02:25.2]} 10. d4 {[%clk 0:02:47.8]} 10... O-O {[%clk 0:02:23.4]} 11. Be3
{[%clk 0:02:47]} 11... cxd4 {[%clk 0:02:21.2]} 12. Nxd4 {[%clk 0:02:37.1]} 12...
Nge5 {[%clk 0:02:21.2]} 13. Nd2 {[%clk 0:02:21.9]} 13... Bg4 {[%clk 0:01:40.5]}
14. Be2 {[%clk 0:02:16]} 14... Qd7 {[%clk 0:01:34.3]} 15. Bxg4 {[%clk
0:02:04.4]} 15... Nxg4 {[%clk 0:01:35.2]} 16. N2f3 {[%clk 0:02:04.5]} 16... Rfe8
{[%clk 0:01:32.5]} 17. Qd2 {[%clk 0:01:03.2]} 17... Bc5 {[%clk 0:01:25.4]} 18.
Rad1 {[%clk 0:00:59.4]} 18... Nge5 {[%clk 0:01:19.3]} 19. Kg2 {[%clk 0:00:36.5]}
19... Qg4 {[%clk 0:01:11.2]} 20. Nxe5 {[%clk 0:00:31.3]} 20... Nxe5 {[%clk
0:01:12.1]} 21. f3 {[%clk 0:00:25.6]} 21... Qg6 {[%clk 0:01:11.4]} 22. b3 {[%clk
0:00:22.1]} 22... Rad8 {[%clk 0:01:10.8]} 23. Bf2 {[%clk 0:00:22.1]} 23... h5
{[%clk 0:01:08.1]} 24. Re3 {[%clk 0:00:20]} 24... Bxd4 {[%clk 0:00:49]} 25. Qxd4
{[%clk 0:00:20]} 25... Nc6 {[%clk 0:00:49.7]} 26. Qd3 {[%clk 0:00:15.6]} 26...
Qf6 {[%clk 0:00:41.6]} 27. Rxe8+ {[%clk 0:00:15.7]} 27... Rxe8 {[%clk
0:00:41.9]} 28. Re1 {[%clk 0:00:16.2]} 28... Rxe1 {[%clk 0:00:35.9]} 29. Bxe1
{[%clk 0:00:16.3]} 29... Qe6 {[%clk 0:00:31.7]} 30. Bf2 {[%clk 0:00:16.5]} 30...
f6 {[%clk 0:00:31.8]} 31. h4 {[%clk 0:00:16.7]} 31... Kf7 {[%clk 0:00:31.7]} 32.
Be3 {[%clk 0:00:12.4]} 32... g6 {[%clk 0:00:28.7]} 33. Qd2 {[%clk 0:00:10.3]}
33... Qf5 {[%clk 0:00:28.2]} 34. Bf4 {[%clk 0:00:10.2]} 34... Qe6 {[%clk
0:00:27.2]} 35. Qd3 {[%clk 0:00:09.9]} 35... Ne7 {[%clk 0:00:25.1]} 36. Qd2
{[%clk 0:00:09.8]} 36... Nf5 {[%clk 0:00:24.5]} 37. Qd3 {[%clk 0:00:10.3]} 37...
Ke8 {[%clk 0:00:18.4]} 38. Kf2 {[%clk 0:00:10]} 38... Kd7 {[%clk 0:00:17.7]} 39.
Qd2 {[%clk 0:00:09.8]} 39... Kc8 {[%clk 0:00:17.5]} 40. Qd3 {[%clk 0:00:10.1]}
40... Ne7 {[%clk 0:00:17.8]} 41. Kg2 {[%clk 0:00:09.6]} 41... Kd7 {[%clk
0:00:15.8]} 42. Qd2 {[%clk 0:00:09.1]} 42... Ke8 {[%clk 0:00:16.2]} 43. Qd3
{[%clk 0:00:09.4]} 43... Kf7 {[%clk 0:00:15.2]} 44. Be3 {[%clk 0:00:09.7]} 44...
Qf5 {[%clk 0:00:15.6]} 45. Qd2 {[%clk 0:00:09.7]} 45... Nc6 {[%clk 0:00:16]} 46.
Bf4 {[%clk 0:00:09.8]} 46... d4 {[%clk 0:00:15]} 47. cxd4 {[%clk 0:00:09.6]}
47... Qd5 {[%clk 0:00:15.4]} 48. Be3 {[%clk 0:00:10.2]} 48... Ne7 {[%clk
0:00:15.9]} 49. Qd3 {[%clk 0:00:09.1]} 49... Nf5 {[%clk 0:00:15.6]} 50. Bf2
{[%clk 0:00:09.6]} 50... g5 {[%clk 0:00:15.7]} 51. Qe4 {[%clk 0:00:09]} 51...
Ne7 {[%clk 0:00:12.5]} 52. hxg5 {[%clk 0:00:09.1]} 52... fxg5 {[%clk 0:00:13]}
53. Be3 {[%clk 0:00:09.7]} 53... g4 {[%clk 0:00:12.5]} 54. Kf2 {[%clk
0:00:07.5]} 54... Ke8 {[%clk 0:00:08.3]} 55. Qf4 {[%clk 0:00:04.1]} 55... gxf3
{[%clk 0:00:04.3]} 56. Qxf3 {[%clk 0:00:04.5]} 56... Kd7 {[%clk 0:00:03.2]} 57.
Qxd5+ {[%clk 0:00:02.8]} 57... Nxd5 {[%clk 0:00:04.1]} 58. Kf3 {[%clk
0:00:03.5]} 58... Ke6 {[%clk 0:00:04.7]} 59. Ke4 {[%clk 0:00:03.3]} 59... Nc3+
{[%clk 0:00:05.2]} 60. Kf4 {[%clk 0:00:03.8]} 60... Nxa2 {[%clk 0:00:04.7]} 61.
Kg5 {[%clk 0:00:04.1]} 61... Nc3 {[%clk 0:00:04]} 62. Kxh5 {[%clk 0:00:04.1]}
62... Nd5 {[%clk 0:00:04.5]} 63. Bd2 {[%clk 0:00:03.7]} 63... Kf5 {[%clk
0:00:04.9]} 64. g4+ {[%clk 0:00:03.8]} 64... Ke4 {[%clk 0:00:05.3]} 65. g5
{[%clk 0:00:04]} 65... Kxd4 {[%clk 0:00:05.4]} 66. Kg6 {[%clk 0:00:03.9]} 66...
Ke5 {[%clk 0:00:04]} 67. Kf7 {[%clk 0:00:04]} 67... Kf5 {[%clk 0:00:03.9]} 68.
g6 {[%clk 0:00:04.3]} 68... Nf6 {[%clk 0:00:02.4]} 69. g7 {[%clk 0:00:04.3]}
69... b5 {[%clk 0:00:01.4]} 70. Bc3 {[%clk 0:00:04.7]} 70... Ng4 {[%clk
0:00:01.9]} 71. Kf8 {[%clk 0:00:04.1]} 71... Nh6 {[%clk 0:00:00.5]} 72. Bd2
{[%clk 0:00:04.7]} 1-0

[Event "Late-Titled-Tuesday-Blitz-May-28-2024"]
[Site "Chess.com"]
[Date "2024.05.28"]
[Round "8"]
[White "RuperezA"]
[Black "OparinGrigoriy"]
[Result "0-1"]
[WhiteElo "2730"]
[BlackElo "3054"]
[TimeControl "180+1"]
[EndTime "15:30:20 PDT"]
[Termination "OparinGrigoriy won by resignation"]

1. e4 {[%clk 0:02:56.7]} 1... c5 {[%clk 0:02:59.9]} 2. Nf3 {[%clk 0:02:56.6]}
2... Nc6 {[%clk 0:03:00.6]} 3. Bb5 {[%clk 0:02:56]} 3... e5 {[%clk 0:03:01.1]}
4. O-O {[%clk 0:02:55.4]} 4... Bd6 {[%clk 0:03:01.8]} 5. c3 {[%clk 0:02:55.2]}
5... a6 {[%clk 0:03:02.4]} 6. Ba4 {[%clk 0:02:54.5]} 6... b5 {[%clk 0:03:03]} 7.
Bc2 {[%clk 0:02:55.2]} 7... Nge7 {[%clk 0:02:58.6]} 8. h3 {[%clk 0:02:41.4]}
8... Ng6 {[%clk 0:02:57.8]} 9. d4 {[%clk 0:02:39.8]} 9... cxd4 {[%clk
0:02:54.6]} 10. cxd4 {[%clk 0:02:40.7]} 10... exd4 {[%clk 0:02:54.6]} 11. Nxd4
{[%clk 0:02:39.7]} 11... Nxd4 {[%clk 0:02:53.3]} 12. Qxd4 {[%clk 0:02:39.5]}
12... Qc7 {[%clk 0:02:53.7]} 13. Qd1 {[%clk 0:02:27.7]} 13... O-O {[%clk
0:02:52.2]} 14. Nc3 {[%clk 0:02:27.5]} 14... Bb7 {[%clk 0:02:52.6]} 15. Bb3
{[%clk 0:02:23.5]} 15... Rae8 {[%clk 0:02:48.1]} 16. Nd5 {[%clk 0:02:21.6]}
16... Qd8 {[%clk 0:02:41]} 17. Re1 {[%clk 0:02:20.3]} 17... Qh4 {[%clk
0:02:40.5]} 18. Qg4 {[%clk 0:02:16.5]} 18... Qxg4 {[%clk 0:02:36.8]} 19. hxg4
{[%clk 0:02:17.4]} 19... Ne5 {[%clk 0:02:37.3]} 20. f3 {[%clk 0:02:14.7]} 20...
Nc4 {[%clk 0:02:36.8]} 21. Ne3 {[%clk 0:02:06.7]} 21... Bc5 {[%clk 0:02:35]} 22.
Kf1 {[%clk 0:02:02.4]} 22... Na5 {[%clk 0:02:02.4]} 23. Bd5 {[%clk 0:01:56.3]}
23... Bxe3 {[%clk 0:02:02.7]} 24. Bxe3 {[%clk 0:01:57.1]} 24... Bxd5 {[%clk
0:02:02.9]} 25. exd5 {[%clk 0:01:58]} 25... Rc8 {[%clk 0:01:58.7]} 26. b3 {[%clk
0:01:54.7]} 26... f6 {[%clk 0:01:52.5]} 27. Rac1 {[%clk 0:01:52.8]} 27... Nb7
{[%clk 0:01:52.7]} 28. Bf4 {[%clk 0:01:51.8]} 28... Kf7 {[%clk 0:01:51]} 29. d6
{[%clk 0:01:44.1]} 29... Rxc1 {[%clk 0:01:42]} 30. Rxc1 {[%clk 0:01:45]} 30...
Na5 {[%clk 0:01:39.8]} 31. Rc7 {[%clk 0:01:33.7]} 31... Ke6 {[%clk 0:01:40.3]}
32. Ra7 {[%clk 0:01:34.3]} 32... Nc6 {[%clk 0:01:35.5]} 33. Rxa6 {[%clk
0:01:34.5]} 33... b4 {[%clk 0:01:34.6]} 34. a3 {[%clk 0:01:32.6]} 34... bxa3
{[%clk 0:01:34]} 35. Rxa3 {[%clk 0:01:33.5]} 35... Rb8 {[%clk 0:01:34.2]} 36.
Kf2 {[%clk 0:01:27.9]} 36... Nd4 {[%clk 0:01:25.4]} 37. b4 {[%clk 0:01:24.4]}
37... Nc6 {[%clk 0:01:25.6]} 38. Bd2 {[%clk 0:01:21.8]} 38... Rb5 {[%clk
0:01:18.5]} 39. Rd3 {[%clk 0:01:15.8]} 39... Rb6 {[%clk 0:01:03.1]} 40. Re3+
{[%clk 0:00:44.8]} 40... Kxd6 {[%clk 0:01:02.3]} 41. Re8 {[%clk 0:00:44.9]}
41... Nxb4 {[%clk 0:00:57.2]} 42. Rg8 {[%clk 0:00:43.1]} 42... g5 {[%clk
0:00:56.8]} 43. Rg7 {[%clk 0:00:40.7]} 43... Nd5 {[%clk 0:00:54.3]} 44. Rxh7
{[%clk 0:00:38.2]} 44... Rb2 {[%clk 0:00:54.9]} 45. Ke1 {[%clk 0:00:38.1]} 45...
Ke6 {[%clk 0:00:55.5]} 46. Rh8 {[%clk 0:00:38]} 46... Kf7 {[%clk 0:00:52.7]} 47.
Rd8 {[%clk 0:00:37.8]} 47... Ke7 {[%clk 0:00:52.8]} 48. Ra8 {[%clk 0:00:38.5]}
48... Nc7 {[%clk 0:00:50.7]} 49. Ra4 {[%clk 0:00:37.7]} 49... Ne6 {[%clk
0:00:49.6]} 50. Ra6 {[%clk 0:00:37]} 50... Nc5 {[%clk 0:00:44.2]} 51. Ra5 {[%clk
0:00:32.1]} 51... Rxd2 {[%clk 0:00:39.8]} 52. Rxc5 {[%clk 0:00:30.7]} 52... Rxg2
{[%clk 0:00:40.5]} 53. Rf5 {[%clk 0:00:30.9]} 53... Ke6 {[%clk 0:00:39.6]} 54.
Kf1 {[%clk 0:00:30.6]} 54... Ra2 {[%clk 0:00:39.6]} 55. f4 {[%clk 0:00:30]}
55... gxf4 {[%clk 0:00:28.4]} 56. Rxf4 {[%clk 0:00:30.9]} 56... d5 {[%clk
0:00:28.7]} 57. Ke1 {[%clk 0:00:24.5]} 57... Rc2 {[%clk 0:00:28.9]} 58. Rf3
{[%clk 0:00:20.6]} 58... Ke5 {[%clk 0:00:20.9]} 59. Rf5+ {[%clk 0:00:20.6]}
59... Ke6 {[%clk 0:00:21.4]} 60. Rf3 {[%clk 0:00:21.3]} 60... Rc4 {[%clk
0:00:14.2]} 61. Rg3 {[%clk 0:00:21.8]} 61... Kf7 {[%clk 0:00:14.9]} 62. g5
{[%clk 0:00:21.4]} 62... f5 {[%clk 0:00:15.4]} 63. g6+ {[%clk 0:00:21.9]} 63...
Kg7 {[%clk 0:00:15.9]} 64. Rd3 {[%clk 0:00:22.1]} 64... Re4+ {[%clk 0:00:15.2]}
65. Kf2 {[%clk 0:00:22]} 65... d4 {[%clk 0:00:15.6]} 66. Rg3 {[%clk 0:00:21.5]}
66... Rg4 {[%clk 0:00:14.5]} 67. Rf3 {[%clk 0:00:19.7]} 67... Kxg6 {[%clk
0:00:14.9]} 68. Ra3 {[%clk 0:00:20.2]} 68... Kg5 {[%clk 0:00:15.2]} 69. Ra8
{[%clk 0:00:19.8]} 69... Rh4 {[%clk 0:00:14.3]} 70. Rd8 {[%clk 0:00:20]} 70...
Kf6 {[%clk 0:00:09.3]} 71. Kg3 {[%clk 0:00:18.1]} 71... Rg4+ {[%clk 0:00:09.4]}
72. Kf3 {[%clk 0:00:19]} 72... Ke5 {[%clk 0:00:09.8]} 73. Re8+ {[%clk
0:00:19.5]} 73... Kd5 {[%clk 0:00:10.2]} 74. Rf8 {[%clk 0:00:19.9]} 74... Rg5
{[%clk 0:00:07.5]} 75. Kf4 {[%clk 0:00:16.5]} 75... Rh5 {[%clk 0:00:07.9]} 76.
Rd8+ {[%clk 0:00:17.3]} 76... Kc4 {[%clk 0:00:08.4]} 77. Rc8+ {[%clk 0:00:16.6]}
77... Kd3 {[%clk 0:00:08.8]} 78. Rd8 {[%clk 0:00:17.4]} 78... Kc3 {[%clk
0:00:09.1]} 79. Rc8+ {[%clk 0:00:15.5]} 79... Kd2 {[%clk 0:00:09.3]} 80. Rd8
{[%clk 0:00:16.4]} 80... d3 {[%clk 0:00:09.8]} 81. Rc8 {[%clk 0:00:17.3]} 81...
Rh1 {[%clk 0:00:08]} 82. Kxf5 {[%clk 0:00:17]} 82... Re1 {[%clk 0:00:08.6]} 83.
Kf4 {[%clk 0:00:16.1]} 83... Re7 {[%clk 0:00:08.6]} 84. Kf3 {[%clk 0:00:16.5]}
84... Kd1 {[%clk 0:00:08.5]} 85. Kf2 {[%clk 0:00:16.3]} 85... d2 {[%clk
0:00:09.1]} 86. Rc5 {[%clk 0:00:15.8]} 86... Rf7+ {[%clk 0:00:09.2]} 87. Kg2
{[%clk 0:00:16.7]} 87... Rf4 {[%clk 0:00:06.1]} 88. Rc6 {[%clk 0:00:15.8]} 88...
Ke2 {[%clk 0:00:04.8]} 89. Re6+ {[%clk 0:00:16.1]} 89... Kd3 {[%clk 0:00:05.2]}
0-1